bitfinex-derivatives/quotes_ETHF0:USTF0_20250421
["timestamp","ask_amount","ask_price","bid_price","bid_amount"]
[1745207668975,4.43039,1636.0,1635.8,2.4679]
[1745207669176,4.43039,1636.0,1635.9,1.6541]
[1745207670281,3.2078,1636.0,1635.9,1.6541]
[1745207670480,1.22249,1636.2,1635.9,6.6541]
[1745207670679,1.22249,1636.2,1636.0,3.72923]
[1745207670878,1.22249,1636.2,1636.1,2.4635]
[1745207675684,3.2078,1636.3,1636.1,2.4635]
[1745207675888,3.2078,1636.3,1636.2,1.6295]
[1745207676188,4.43022,1636.3,1636.2,1.6295]
[1745207683690,13.69822,1636.3,1635.8,13.98917293]
[1745207683890,4.43046,1635.9,1635.8,8.10517293]
[1745207684285,9.43046,1635.9,1635.8,8.10517293]
[1745207684486,11.90596,1635.9,1635.8,8.10517293]
[1745207685882,11.90596,1635.9,1635.7,10.53849134]
[1745207685883,1.22274,1635.8,1635.7,10.53849134]
[1745207686086,2.84934,1635.8,1635.7,9.12682957]
[1745207686887,2.84934,1635.8,1635.3,1.736]
[1745207686888,1.22304,1635.4,1635.3,1.736]
[1745207687087,4.43084,1635.4,1635.3,1.736]
[1745207687587,3.2078,1635.4,1635.3,6.736]
[1745207687788,3.2078,1635.4,1635.3,1.736]
[1745207689489,4.43084,1635.4,1635.3,1.736]
[1745207690092,0.00916898,1635.5,1635.3,2.95911]
[1745207690300,1.23213898,1635.5,1635.3,2.95911]
[1745207690490,0.00916898,1635.5,1635.4,1.7036]
[1745207691792,1.23212898,1635.5,1635.4,1.7036]
[1745207692301,0.00916898,1635.5,1635.4,1.7036]
[1745207693401,1.23212898,1635.5,1635.4,1.7036]
[1745207694302,0.00916898,1635.5,1635.4,1.7036]
[1745207694503,1.23212898,1635.5,1635.4,1.7036]
[1745207695205,0.00916898,1635.5,1635.4,1.7036]
[1745207695405,1.23212898,1635.5,1635.4,1.7036]
[1745207696004,4.43992898,1635.5,1635.4,1.7036]
[1745207699298,1.22317,1635.3,1635.0,3.2078]
[1745207699503,3.2078,1635.2,1635.0,1.7507]
[1745207699806,1.22305,1635.4,1635.2,1.22315]
[1745207700007,1.22305,1635.4,1635.3,1.7507]
[1745207700207,1.22304,1635.4,1635.3,1.7507]
[1745207700811,6.09178898,1635.5,1635.3,2.97381]
[1745207701109,6.09178898,1635.5,1635.4,0.8781]
[1745207701412,6.09178898,1635.5,1635.4,3.4631]
[1745207702105,3.21696898,1635.5,1635.4,3.4631]
[1745207702312,0.00916898,1635.5,1635.4,4.68614]
[1745207703211,0.00916898,1635.5,1635.4,6.95014]
[1745207704010,3.2078,1635.7,1635.6,1.22289]
[1745207704813,3.2078,1635.7,1635.6,2.93479]
[1745207705918,0.00916898,1635.8,1635.7,1.22281]
[1745207706108,0.00916898,1635.8,1635.7,4.61601]
[1745207710311,5.7892,1636.1,1636.0,1.22259]
[1745207710512,4.9475,1636.1,1636.0,1.22259]
[1745207710815,3.2078,1636.1,1636.0,1.22259]
[1745207711412,0.00916898,1636.2,1636.1,1.22251]
[1745207712422,0.00916898,1636.2,1636.1,3.74181]
[1745207717519,4.42997,1636.6,1636.4,1.22229]
[1745207717721,1.22222,1636.5,1636.3,1.22231]
[1745207717914,4.8503,1636.4,1636.3,1.22231]
[1745207720724,4.8503,1636.4,1636.2,1.72476898]
[1745207720924,1.22236,1636.3,1636.2,0.00916898]
[1745207721224,4.61446,1636.3,1636.2,0.00916898]
[1745207721724,3.3921,1636.3,1636.2,1.23160898]
[1745207721925,3.0561,1636.2,1635.6,1.22285]
[1745207722128,3.2078,1635.9,1635.5,1.6302]
[1745207722420,3.2078,1635.9,1635.7,1.22275]
[1745207722626,4.43046,1635.9,1635.8,1.6302]
[1745207722827,6.10126,1635.9,1635.6,5.48884]
[1745207723127,1.6708,1635.8,1635.7,1.22281]
[1745207723423,1.6708,1635.8,1635.7,2.92521]
[1745207725024,1.6708,1635.8,1635.7,1.7024]
[1745207725621,2.89357,1635.8,1635.6,0.00916898]
[1745207725825,2.89357,1635.8,1635.6,1.23204898]
[1745207726017,1.7157,1635.7,1635.6,1.23204898]
[1745207726217,1.7157,1635.7,1635.6,2.87264898]
[1745207728126,3.2078,1635.9,1635.6,1.64976898]
[1745207728424,1.6528,1636.0,1635.6,1.64976898]
[1745207728425,1.6528,1636.0,1635.9,1.22266]
[1745207728613,1.7157,1636.2,1636.0,1.22253]
[1745207728821,1.7157,1636.2,1635.8,4.266]
[1745207728822,3.2078,1636.1,1635.8,4.266]
[1745207729122,3.2078,1636.1,1636.0,1.22259]
[1745207729318,4.8443,1636.1,1636.0,1.22259]
[1745207730625,1.6365,1636.1,1636.0,2.08869]
[1745207731226,12.19315271,1636.3,1636.0,2.08869]
[1745207731525,13.82965271,1636.3,1636.1,2.9765]
[1745207731721,1.6365,1636.2,1636.1,2.9765]
[1745207732723,1.6365,1636.2,1636.1,1.754]
[1745207732928,2.85894,1636.2,1636.0,2.08863]
[1745207733320,1.6855,1636.1,1636.0,2.08863]
[1745207734028,6.12052,1636.3,1636.1,1.22251]
[1745207734231,1.6855,1636.2,1636.1,2.90611]
[1745207734724,1.6855,1636.2,1636.0,0.8661]
[1745207734725,1.6855,1636.2,1635.7,4.0955]
[1745207734929,3.2078,1635.9,1635.8,5.48574]
[1745207735129,1.6855,1636.2,1635.9,1.22263]
[1745207735130,4.43037,1636.1,1635.9,1.22263]
[1745207735330,1.7738,1636.0,1635.9,1.22263]
[1745207735523,1.7738,1636.0,1635.9,2.90753]
[1745207735921,4.43037,1636.1,1635.9,2.90753]
[1745207736323,1.7738,1636.0,1635.9,2.90753]
[1745207736523,2.99639,1636.0,1635.9,1.6849]
[1745207736722,1.7738,1636.0,1635.9,1.6849]
[1745207737021,3.4241,1636.0,1635.9,1.6849]
[1745207737930,4.64669,1636.0,1635.9,1.6849]
[1745207739537,3.4241,1636.0,1635.9,1.6849]
[1745207739734,4.64669,1636.0,1635.9,1.6849]
[1745207740032,3.4241,1636.0,1635.9,1.6849]
[1745207740729,3.4241,1636.0,1635.9,2.90756]
[1745207740932,3.2078,1636.3,1635.9,6.6849]
[1745207741233,3.2078,1636.3,1636.2,1.2224]
[1745207742322,3.2078,1636.3,1636.2,2.9531]
[1745207744435,4.65569,1636.4,1636.2,2.9531]
[1745207744637,3.4334,1636.4,1636.2,2.9531]
[1745207744840,3.4334,1636.4,1636.3,1.7721]
[1745207746040,4.65569,1636.4,1636.3,1.7721]
[1745207746536,4.65569,1636.4,1636.1,2.06376]
[1745207746736,1.7208,1636.3,1636.2,2.99454]
[1745207747931,2.94322,1636.3,1636.1,2.06381]
[1745207748130,2.94322,1636.3,1636.1,2.4974]
[1745207748337,1.6035,1636.2,1636.1,2.4974]
[1745207749439,4.8113,1636.2,1636.1,2.4974]
[1745207749743,4.8113,1636.2,1636.1,3.71991]
[1745207751341,4.8113,1636.2,1636.1,2.4974]
[1745207751838,6.03374,1636.2,1636.1,2.4974]
[1745207753544,1.22264,1636.0,1635.8,4.263]
[1745207753735,3.2078,1636.0,1635.8,8.77079]
[1745207753935,4.43039,1636.0,1635.9,1.6403]
[1745207754237,6.12219,1636.0,1635.9,1.6403]
[1745207757237,1.22266,1635.9,1635.8,0.8433]
[1745207757437,2.98166,1635.9,1635.8,2.6114]
[1745207760543,1.22274,1635.8,1635.7,0.8697]
[1745207760745,4.43054,1635.8,1635.7,2.5208]
[1745207761147,3.2078,1635.8,1635.7,2.5208]
[1745207761351,3.2078,1635.8,1635.7,3.74361]
[1745207762157,1.22262,1636.0,1635.8,1.22273]
[1745207762158,4.43042,1636.0,1635.8,1.22273]
[1745207762347,4.43042,1636.0,1635.9,2.5139]
[1745207762552,3.2078,1636.0,1635.9,2.5139]
[1745207762861,3.2078,1636.0,1635.9,3.73656]
[1745207763354,3.2078,1636.0,1635.9,2.5139]
[1745207763755,4.43039,1636.0,1635.9,2.5139]
[1745207766859,3.2078,1636.0,1635.9,2.5139]
[1745207767059,3.2078,1636.0,1635.9,3.73655]
[1745207769563,2.88319,1636.2,1635.9,3.73655]
[1745207769753,2.88319,1636.2,1636.0,2.4963]
[1745207769953,2.88319,1636.2,1636.1,1.6625]
[1745207770148,6.09099,1636.2,1636.1,1.6625]
[1745207770554,1.22259,1636.0,1635.9,0.8284]
[1745207770760,4.43039,1636.0,1635.9,0.8284]
[1745207770956,3.2078,1636.0,1635.9,2.4909]
[1745207772656,3.2078,1636.0,1635.9,3.71356]
[1745207772856,4.9502,1636.0,1635.9,2.4909]
[1745207773365,4.9502,1636.0,1635.9,3.71356]
[1745207774158,3.2078,1636.2,1636.0,1.22252]
[1745207774465,6.07264271,1636.3,1636.2,1.22244]
[1745207774863,11.30119345,1636.4,1636.3,1.22236]
[1745207775059,8.09339345,1636.4,1636.3,3.74516]
[1745207777874,8.09339345,1636.4,1636.3,8.74516]
[1745207778061,10.14718123,1636.5,1636.3,3.74512]
[1745207778261,13.35498123,1636.5,1636.4,1.6643]
[1745207778463,13.35498123,1636.5,1636.4,2.88659]
[1745207778768,15.97798123,1636.5,1636.4,1.6643]
[1745207778962,7.06217898,1636.5,1636.4,1.6643]
[1745207780568,5.83996898,1636.5,1636.4,2.88659]
[1745207780974,2.63216898,1636.5,1636.4,1.6643]
[1745207781173,7.06217898,1636.5,1636.4,1.6643]
[1745207781675,5.83996898,1636.5,1636.4,1.6643]
[1745207781972,5.83996898,1636.5,1636.4,2.88659]
[1745207783477,5.83996898,1636.5,1636.4,1.22229]
[1745207783676,5.83996898,1636.5,1636.3,2.84202]
[1745207783975,5.83996898,1636.5,1636.4,1.22229]
[1745207785478,1.22237,1636.3,1636.1,4.43029]
[1745207785677,2.87194,1636.2,1636.0,11.36657]
[1745207785878,3.3399,1636.2,1636.0,12.98627]
[1745207786080,3.3399,1636.2,1636.1,1.22251]
[1745207786478,3.3399,1636.2,1636.1,2.84221]
[1745207788880,3.3399,1636.2,1636.1,1.6197]
[1745207789173,0.00916898,1636.5,1636.4,1.22229]
[1745207790674,1.64706898,1636.5,1636.4,1.22229]
[1745207791281,4.85486898,1636.5,1636.4,1.22229]
[1745207791782,1.64706898,1636.5,1636.4,1.22229]
[1745207793478,3.21696898,1636.5,1636.4,1.22229]
[1745207793782,0.00916898,1636.5,1636.4,1.22229]
[1745207793983,0.00916898,1636.5,1636.4,2.95199]
[1745207796183,0.00916898,1636.5,1636.4,5.21599]
[1745207796376,0.8741,1636.8,1636.6,1.22214]
[1745207796583,0.8741,1636.8,1636.7,3.79376]
[1745207797284,2.4845,1636.8,1636.7,3.79376]
[1745207798382,3.21696898,1636.9,1636.8,1.22199]
[1745207798685,3.21696898,1636.9,1636.8,2.98249]
[1745207798884,3.21696898,1636.9,1636.8,3.81079]
[1745207799385,4.99296898,1636.9,1636.8,3.81079]
[1745207799783,1.78516898,1636.9,1636.8,3.81079]
[1745207800080,0.00916898,1636.9,1636.8,3.81079]
[1745207800882,3.21696898,1636.9,1636.8,3.81079]
[1745207801285,8.21696898,1636.9,1636.6,0.00916898]
[1745207801485,3.2078,1636.7,1636.6,0.00916898]
[1745207801676,3.2078,1636.7,1636.6,1.72206898]
[1745207801880,4.0323,1636.7,1636.6,1.72206898]
[1745207802083,4.8339,1636.7,1636.6,1.72206898]
[1745207802277,6.05596,1636.7,1636.6,1.72206898]
[1745207803886,4.8339,1636.7,1636.6,1.72206898]
[1745207804291,6.5484,1636.7,1636.6,1.72206898]
[1745207804493,7.77046,1636.7,1636.6,1.72206898]
[1745207805592,7.77046,1636.7,1636.6,0.00916898]
[1745207805794,6.5484,1636.7,1636.6,0.00916898]
[1745207806091,7.77046,1636.7,1636.6,0.00916898]
[1745207809796,4.56266,1636.7,1636.6,0.00916898]
[1745207809988,6.5484,1636.7,1636.6,0.00916898]
[1745207810189,7.77046,1636.7,1636.6,1.75276898]
[1745207810495,6.5484,1636.7,1636.6,1.75276898]
[1745207810801,7.77046,1636.7,1636.6,1.75276898]
[1745207812397,6.5484,1636.7,1636.6,2.97490898]
[1745207813093,7.77046,1636.7,1636.6,1.75276898]
[1745207813498,6.5484,1636.7,1636.6,1.75276898]
[1745207813699,7.77046,1636.7,1636.6,1.75276898]
[1745207814295,6.5484,1636.7,1636.6,1.75276898]
[1745207814495,6.5484,1636.7,1636.6,2.97490898]
[1745207815190,6.5484,1636.7,1636.6,1.75276898]
[1745207815391,6.5484,1636.7,1636.6,2.97490898]
[1745207815598,6.5484,1636.7,1636.6,1.75276898]
[1745207815994,6.5484,1636.7,1636.6,2.97490898]
[1745207816193,6.5484,1636.7,1636.6,1.75276898]
[1745207816692,6.5484,1636.7,1636.6,2.97490898]
[1745207817194,6.5484,1636.7,1636.6,1.75276898]
[1745207817797,6.5484,1636.7,1636.6,2.97490898]
[1745207818398,3.3406,1636.7,1636.6,2.97490898]
[1745207818597,6.5484,1636.7,1636.6,1.75276898]
[1745207818798,6.5484,1636.7,1636.6,2.97490898]
[1745207818998,6.5484,1636.7,1636.6,1.75276898]
[1745207820405,6.5484,1636.7,1636.6,2.97490898]
[1745207820912,6.5627,1636.7,1636.6,2.97490898]
[1745207821407,3.2221,1636.7,1636.6,2.97490898]
[1745207822107,0.0143,1636.7,1636.6,2.97490898]
[1745207822310,4.8326,1636.7,1636.6,2.97490898]
[1745207822807,1.6248,1636.7,1636.6,2.97490898]
[1745207823007,4.8326,1636.7,1636.6,2.97490898]
[1745207824413,0.0143,1636.7,1636.6,3.81090898]
[1745207826615,6.11873809,1636.9,1636.8,1.22199]
[1745207826817,0.00916898,1636.9,1636.8,1.22199]
[1745207827016,0.00916898,1636.9,1636.8,2.10769]
[1745207830526,3.21696898,1636.9,1636.8,2.10769]
[1745207832319,3.21696898,1636.9,1636.8,1.22199]
[1745207833025,3.21696898,1636.9,1636.8,2.05199]
[1745207841129,0.00916898,1636.9,1636.8,2.05199]
[1745207842531,1.77716898,1636.9,1636.8,2.05199]
[1745207846333,4.98496898,1636.9,1636.8,2.05199]
[1745207847033,4.98496898,1636.9,1636.7,1.7106]
[1745207847228,1.22206,1636.7,1636.6,0.00916898]
[1745207847533,4.60803,1636.8,1636.6,0.00916898]
[1745207847736,1.6363,1636.7,1636.6,0.00916898]
[1745207848128,1.6363,1636.7,1636.6,1.62586898]
[1745207848330,4.8441,1636.7,1636.6,1.62586898]
[1745207848736,9.8441,1636.7,1636.6,0.00916898]
[1745207848947,9.8441,1636.7,1636.3,20.36746935]
[1745207848948,18.8833,1636.7,1636.3,20.36746935]
[1745207849238,4.43009,1636.4,1636.3,20.36746935]
[1745207850128,6.06639,1636.4,1636.3,20.36746935]
[1745207850636,4.8441,1636.4,1636.3,20.36746935]
[1745207851136,4.8441,1636.4,1636.3,22.93836935]
[1745207852634,3.2078,1636.4,1636.3,22.93836935]
[1745207853039,3.2078,1636.4,1636.3,24.16072935]
[1745207853637,3.2078,1636.4,1636.3,22.93836935]
[1745207854534,4.43009,1636.4,1636.3,22.93836935]
[1745207854737,4.43009,1636.4,1636.3,2.5709]
[1745207854929,4.43009,1636.4,1636.3,1.6938]
[1745207857248,1.22236,1636.3,1636.2,0.88016898]
[1745207857443,2.90806,1636.3,1636.2,0.88016898]
[1745207857644,4.60516,1636.3,1636.2,2.51056898]
[1745207860948,14.3668,1636.3,1635.9,3.2078]
[1745207861144,1.22289,1635.6,1635.5,0.66429211]
[1745207861441,1.22304,1635.4,1635.3,13.46187332]
[1745207861746,1.22304,1635.4,1635.2,0.45648067]
[1745207861747,1.22311,1635.3,1635.2,0.45648067]
[1745207861944,7.18261,1635.3,1635.2,0.45648067]
[1745207862240,1.22318,1635.2,1635.1,18.61780648]
[1745207862442,6.14148,1635.2,1635.1,18.61780648]
[1745207864345,11.6010323,1635.2,1635.1,18.61780648]
[1745207864535,7.4196323,1635.2,1635.1,18.61780648]
[1745207866552,7.4196323,1635.2,1635.1,17.10859648]
[1745207867056,1.22326,1635.1,1635.0,23.90788745]
[1745207867249,1.22363,1634.6,1634.5,1.7029]
[1745207867449,4.43143,1634.6,1634.5,5.884]
[1745207867645,3.2078,1634.6,1634.5,12.0]
[1745207867953,4.43143,1634.6,1634.5,12.0]
[1745207868249,4.43143,1634.6,1634.5,14.264]
[1745207868948,3.2078,1634.6,1634.5,14.264]
[1745207869354,4.43143,1634.6,1634.5,14.264]
[1745207871754,4.43143,1634.6,1634.5,8.38]
[1745207871956,4.43143,1634.6,1634.5,2.264]
[1745207872255,1.22386,1634.3,1634.2,0.8291]
[1745207872454,4.43166,1634.3,1634.2,6.7131]
[1745207872649,4.43166,1634.3,1634.2,12.8291]
[1745207876154,3.2078,1634.3,1634.2,12.8291]
[1745207876455,4.43166,1634.3,1634.2,12.8291]
[1745207880252,3.2078,1634.3,1634.2,12.8291]
[1745207880549,3.2078,1634.3,1634.2,14.05303]
[1745207880760,0.00916898,1634.4,1634.2,14.05303]
[1745207880962,0.00916898,1634.4,1634.3,7.33986]
[1745207881356,0.00916898,1634.4,1634.3,18.22386]
[1745207881661,0.00916898,1634.4,1634.3,22.47786]
[1745207882354,9.04219,1635.1,1634.3,15.37]
[1745207882557,1.2233,1635.1,1634.6,3.2078]
[1745207882755,1.2233,1635.1,1634.8,1.22344]
[1745207882955,1.2233,1635.1,1634.9,0.8298]
[1745207883155,1.2233,1635.1,1634.9,9.2098]
[1745207883357,1.2233,1635.1,1635.0,6.116]
[1745207883556,4.44019898,1635.2,1635.0,6.116]
[1745207883755,4.44019898,1635.2,1635.1,6.116]
[1745207883955,4.44019898,1635.2,1635.0,6.116]
[1745207884358,3.21696898,1635.2,1635.1,6.116]
[1745207884664,4.44014898,1635.2,1635.1,6.116]
[1745207885461,6.08244898,1635.2,1635.1,6.116]
[1745207885864,4.85926898,1635.2,1635.1,6.116]
[1745207886064,1.65146898,1635.2,1635.1,6.116]
[1745207886263,4.85926898,1635.2,1635.1,6.116]
[1745207887462,1.65146898,1635.2,1635.1,6.116]
[1745207887651,4.85926898,1635.2,1635.1,6.116]
[1745207887965,6.08244898,1635.2,1635.1,6.116]
[1745207888157,11.96979898,1635.2,1634.8,2.97297]
[1745207888359,3.2078,1635.0,1634.8,9.08897]
[1745207888559,3.2078,1635.0,1634.9,7.8655]
[1745207888955,8.68313,1635.0,1634.9,7.8655]
[1745207889159,8.68313,1635.0,1634.8,1.7495]
[1745207889160,1.22341,1634.9,1634.8,1.7495]
[1745207889361,7.729,1634.9,1634.7,6.116]
[1745207889568,1.22356,1634.7,1634.6,1.7495]
[1745207889765,4.252,1634.7,1634.6,7.8655]
[1745207891066,5.47556,1634.7,1634.6,7.8655]
[1745207891265,7.14846,1634.7,1634.6,7.8655]
[1745207891465,5.9249,1634.7,1634.6,7.8655]
[1745207892366,7.14846,1634.7,1634.6,7.8655]
[1745207894070,4.252,1634.7,1634.6,7.8655]
[1745207894465,5.47556,1634.7,1634.6,7.8655]
[1745207896763,3.2078,1634.8,1634.6,9.08913]
[1745207896963,3.2078,1634.8,1634.7,7.7762]
[1745207897160,4.43128,1634.8,1634.7,1.6602]
[1745207897365,4.43128,1634.8,1634.7,7.7762]
[1745207897574,6.06598,1634.8,1634.7,7.7762]
[1745207899563,6.06598,1634.8,1634.7,6.116]
[1745207900571,4.43128,1634.8,1634.7,6.116]
[1745207901066,6.04568,1634.8,1634.7,6.116]
[1745207903173,3.2078,1634.8,1634.7,6.116]
[1745207903369,4.43128,1634.8,1634.7,6.116]
[1745207903574,4.43128,1634.8,1634.7,7.7386]
[1745207904276,3.2078,1634.8,1634.4,1.22375]
[1745207904470,2.93088,1634.7,1634.6,1.6226]
[1745207904671,1.22363,1634.6,1634.5,6.116]
[1745207904872,1.7073,1634.6,1634.5,1.6226]
[1745207905068,1.7073,1634.6,1634.5,7.7386]
[1745207906174,2.0435,1634.7,1634.5,7.7386]
[1745207906373,2.0435,1634.7,1634.4,2.04035]
[1745207906374,3.786,1634.7,1634.6,7.7333]
[1745207906672,3.786,1634.7,1634.6,1.6173]
[1745207906872,3.786,1634.7,1634.6,7.7333]
[1745207907269,2.5624,1634.7,1634.6,7.7333]
[1745207907466,3.2078,1634.8,1634.6,7.7333]
[1745207907671,8.68332,1634.8,1634.7,7.7333]
[1745207907969,8.68332,1634.8,1634.7,1.6173]
[1745207908169,8.68332,1634.8,1634.7,7.7333]
[1745207911381,19.3572718,1634.8,1634.7,7.7333]
[1745207912579,13.3405318,1634.8,1634.7,7.7333]
[1745207912786,12.1170518,1634.8,1634.7,7.7333]
[1745207913076,13.3405318,1634.8,1634.7,7.7333]
[1745207913985,8.9092518,1634.8,1634.7,8.95686]
[1745207914284,8.9092518,1634.8,1634.7,7.7333]
[1745207914672,8.9092518,1634.8,1634.7,8.5927]
[1745207915075,12.1170518,1634.8,1634.7,8.5927]
[1745207915370,13.3405318,1634.8,1634.7,8.5927]
[1745207915984,15.0852318,1634.8,1634.7,8.5927]
[1745207916183,12.28466691,1634.8,1634.7,8.5927]
[1745207917686,13.08996691,1634.8,1634.7,8.5927]
[1745207920791,15.8905318,1634.8,1634.7,8.5927]
[1745207923899,15.8905318,1634.8,1634.7,6.116]
[1745207924195,12.1170518,1634.8,1634.7,6.116]
[1745207924697,13.3405318,1634.8,1634.7,8.6606]
[1745207924993,15.0157318,1634.8,1634.7,8.6606]
[1745207925181,13.7922518,1634.8,1634.7,8.6606]
[1745207925387,12.1170518,1634.8,1634.7,8.6606]
[1745207926096,13.3405318,1634.8,1634.7,8.6606]
[1745207926497,15.0170318,1634.8,1634.7,8.6606]
[1745207927100,1.22363,1634.6,1634.5,0.8111]
[1745207927288,3.2078,1634.6,1634.5,0.8111]
[1745207927489,3.2078,1634.6,1634.5,6.9271]
[1745207927685,3.2078,1634.6,1634.5,8.5858]
[1745207929597,4.43143,1634.6,1634.5,8.5858]
[1745207930000,3.2078,1634.6,1634.5,8.5858]
[1745207930500,13.3405818,1634.8,1634.5,9.80951]
[1745207930701,13.3405818,1634.8,1634.6,8.5961]
[1745207930895,13.3405818,1634.8,1634.7,1.6414]
[1745207931097,13.3405818,1634.8,1634.7,7.7574]
[1745207931297,12.1170518,1634.8,1634.7,7.7574]
[1745207931598,8.9092518,1634.8,1634.7,13.98096]
[1745207932100,8.9092518,1634.8,1634.7,16.24496]
[1745207932503,8.1290167,1634.8,1634.7,16.24496]
[1745207933494,8.1290167,1634.8,1634.7,20.49596]
[1745207935304,8.1290167,1634.8,1634.7,15.49596]
[1745207937204,5.30120869,1634.9,1634.8,1.22348]
[1745207937403,5.30120869,1634.9,1634.8,9.98298]
[1745207937902,4.07779869,1634.9,1634.8,9.98298]
[1745207938298,4.07779869,1634.9,1634.8,8.7595]
[1745207938504,4.07779869,1634.9,1634.8,9.98298]
[1745207941806,6.89678651,1634.9,1634.8,9.98298]
[1745207944707,11.89678651,1634.9,1634.6,0.8387]
[1745207944908,11.89678651,1634.9,1634.6,6.116]
[1745207944909,5.7201,1634.8,1634.6,6.116]
[1745207945109,6.89678651,1634.9,1634.8,1.22348]
[1745207945309,6.89678651,1634.9,1634.8,7.33948]
[1745207946505,6.89678651,1634.9,1634.8,9.07298]
[1745207947415,6.89678651,1634.9,1634.8,7.8495]
[1745207947913,8.54708651,1634.9,1634.8,7.8495]
[1745207948615,9.77049651,1634.9,1634.8,7.8495]
[1745207948812,10.57169651,1634.9,1634.8,7.8495]
[1745207950022,9.34828651,1634.9,1634.8,7.8495]
[1745207950927,10.57169651,1634.9,1634.8,7.8495]
[1745207951226,13.77949651,1634.9,1634.8,7.8495]
[1745207951419,12.55608651,1634.9,1634.8,7.8495]
[1745207951618,11.75488651,1634.9,1634.8,7.8495]
[1745207952227,8.54708651,1634.9,1634.8,7.8495]
[1745207952525,12.97829651,1634.9,1634.8,7.8495]
[1745207952726,12.97829651,1634.9,1634.8,6.116]
[1745207953524,6.89678651,1634.9,1634.8,6.116]
[1745207953920,6.89678651,1634.9,1634.8,7.8569]
[1745207954121,8.59488651,1634.9,1634.8,7.8569]
[1745207954520,5.68598847,1634.9,1634.8,7.8569]
[1745207954718,6.90939847,1634.9,1634.8,7.8569]
[1745207955230,6.90939847,1634.9,1634.8,6.116]
[1745207957419,1.22353,1634.8,1634.6,1.7409]
[1745207957618,5.29916,1634.7,1634.6,1.7409]
[1745207958019,6.91066,1634.7,1634.6,7.8569]
[1745207961423,5.6871,1634.7,1634.6,7.8569]
[1745207961631,6.91066,1634.7,1634.6,7.8569]
[1745207962830,3.70286,1634.7,1634.6,7.8569]
[1745207963129,13.79997679,1634.7,1634.6,6.116]
[1745207964032,18.04797679,1634.7,1634.6,6.116]
[1745207964232,1.22371,1634.5,1634.4,1.7707]
[1745207964433,1.22371,1634.5,1634.4,7.8867]
[1745207965533,1.22371,1634.5,1634.4,6.116]
[1745207965725,2.03171,1634.5,1634.4,6.116]
[1745207966526,5.23951,1634.5,1634.4,6.116]
[1745207966832,12.12882679,1634.5,1634.4,6.116]
[1745207967321,13.81102679,1634.5,1634.4,6.116]
[1745207968825,13.81102679,1634.5,1634.4,7.7171]
[1745207969021,13.00302679,1634.5,1634.4,7.7171]
[1745207970620,9.79522679,1634.5,1634.4,7.7171]
[1745207970826,13.00302679,1634.5,1634.4,7.7171]
[1745207971021,11.32082679,1634.5,1634.4,7.7171]
[1745207975730,8.11302679,1634.5,1634.4,7.7171]
[1745207976032,11.32082679,1634.5,1634.4,7.7171]
[1745207977036,6.88931679,1634.5,1634.4,7.7171]
[1745207977338,6.88931679,1634.5,1634.4,9.9811]
[1745207977533,8.11302679,1634.5,1634.4,9.9811]
[1745207977739,11.32082679,1634.5,1634.4,9.9811]
[1745207980540,4.84703871,1634.5,1634.4,9.9811]
[1745207980940,6.07074871,1634.5,1634.4,9.9811]
[1745207981434,4.84703871,1634.5,1634.4,9.9811]
[1745207981632,6.07074871,1634.5,1634.4,9.9811]
[1745207982237,6.07074871,1634.5,1634.4,7.7171]
[1745207984443,4.84703871,1634.5,1634.4,7.7171]
[1745207985129,4.84703871,1634.5,1634.4,9.9811]
[1745207986544,6.07074871,1634.5,1634.4,9.9811]
[1745207986736,4.84703871,1634.5,1634.4,11.20488]
[1745207986943,4.84703871,1634.5,1634.4,16.20488]
[1745207987441,4.06695024,1634.6,1634.5,1.22371]
[1745207987744,4.06695024,1634.6,1634.5,8.94961]
[1745207988136,4.06695024,1634.6,1634.5,11.21361]
[1745207990945,4.06695024,1634.6,1634.5,14.42141]
[1745207991138,6.10922832,1634.7,1634.6,1.22363]
[1745207991340,6.10922832,1634.7,1634.6,10.96593]
[1745207991538,6.10922832,1634.7,1634.6,15.96593]
[1745207991838,4.07403553,1634.7,1634.6,15.96593]
[1745207994937,4.07403553,1634.7,1634.6,10.96593]
[1745207996245,12.29009832,1635.1,1634.9,1.22341]
[1745207996453,2.88373,1635.0,1634.9,1.22341]
[1745207996749,2.88377,1635.0,1634.9,6.116]
[1745207997653,1.6604,1635.0,1634.9,7.33941]
[1745207997954,1.6604,1635.0,1634.9,6.116]
[1745207998155,1.6604,1635.0,1634.9,7.33941]
[1745207998362,6.10922832,1635.1,1635.0,1.22333]
[1745207998545,6.10922832,1635.1,1635.0,10.01293]
[1745207999152,6.10922832,1635.1,1635.0,12.27693]
[1745207999956,16.10520826,1635.1,1635.0,12.27693]
[1745208000655,16.10520826,1635.1,1635.0,6.16093]
[1745208002755,16.10520826,1635.1,1635.0,9.36873]
[1745208003250,7.7253585,1635.1,1635.0,20.25273]
[1745208003452,5.5032285,1635.1,1635.0,20.25273]
[1745208004260,14.9342885,1635.1,1635.0,2.264]
[1745208004457,1.2234,1635.0,1634.7,1.2235]
[1745208004659,3.2078,1634.9,1634.8,1.22348]
[1745208005056,3.2078,1634.9,1634.7,1.675]
[1745208005357,3.2078,1634.9,1634.8,1.22348]
[1745208005556,4.8412,1634.9,1634.7,5.16256]
[1745208005755,3.6103,1634.8,1634.7,5.16256]
[1745208005956,7.4528,1635.1,1634.7,3.939]
[1745208006158,2.6476,1635.0,1634.9,1.22341]
[1745208006662,0.00916898,1635.2,1635.1,1.22326]
[1745208006857,6.11012453,1635.2,1635.1,1.22326]
[1745208007159,6.11012453,1635.2,1635.1,8.94816]
[1745208007459,6.11012453,1635.2,1635.1,13.19316]
[1745208008359,6.11012453,1635.2,1635.1,18.19316]
[1745208008752,6.11012453,1635.2,1635.1,21.40096]
[1745208009963,6.11012453,1635.2,1635.1,16.40096]